bitfinex/quotes_BTCUSD_20250423
["timestamp","ask_amount","ask_price","bid_price","bid_amount"]
[1745434407211,0.01068387,93599.0,93592.0,0.21369305]
[1745434407576,0.01068387,93599.0,93590.0,0.0106849]
[1745434407577,0.01068387,93599.0,93590.0,0.21369804]
[1745434408192,0.06078398,93598.0,93590.0,0.21369804]
[1745434408624,0.0501,93598.0,93590.0,0.21369804]
[1745434409051,0.06078398,93598.0,93590.0,0.21369804]
[1745434409211,0.06378398,93598.0,93590.0,0.001]
[1745434409691,0.0531,93598.0,93591.0,0.21369358]
[1745434410299,0.06378398,93598.0,93591.0,0.21369358]
[1745434410867,0.06078398,93598.0,93591.0,0.21369358]
[1745434411064,0.05778398,93598.0,93591.0,0.21369358]
[1745434411249,0.06078398,93598.0,93591.0,0.21369358]
[1745434412510,0.06378398,93598.0,93591.0,0.21469358]
[1745434413144,0.06378398,93598.0,93591.0,0.001]
[1745434414212,0.0531,93598.0,93591.0,0.001]
[1745434414418,0.0531,93598.0,93591.0,0.01168478]
[1745434414630,0.0531,93598.0,93591.0,0.001]
[1745434415088,0.0531,93598.0,93595.0,0.21368586]
[1745434415279,0.0531,93598.0,93593.0,0.22437454]
[1745434415484,0.0531,93598.0,93595.0,0.21368604]
[1745434415781,0.006,93598.0,93596.0,0.21368258]
[1745434416085,0.01576802,93601.0,93600.0,0.21367521]
[1745434416569,0.004,93598.0,93597.0,0.21368206]
[1745434416778,0.01576802,93601.0,93595.0,0.01068433]
[1745434416981,0.01576802,93601.0,93596.0,0.22436638]
[1745434417178,0.008,93598.0,93596.0,0.22536638]
[1745434417721,0.008,93598.0,93597.0,0.34]
[1745434418327,0.005,93598.0,93597.0,0.34]
[1745434418758,0.02176802,93601.0,93599.0,0.34]
[1745434419170,0.01976802,93601.0,93599.0,0.34]
[1745434419813,0.01576802,93601.0,93599.0,0.34]
[1745434420274,0.02376802,93601.0,93599.0,0.342]
[1745434421222,0.02376802,93601.0,93599.0,0.002]
[1745434431432,0.0463,93600.0,93599.0,0.002]
[1745434432331,0.0463,93600.0,93599.0,0.001]
[1745434432532,0.01068467,93592.0,93589.0,0.34]
[1745434432735,0.22338054,93591.0,93588.0,0.09404]
[1745434432904,0.00968478,93591.0,93588.0,0.09404]
[1745434433107,0.21369804,93590.0,93588.0,0.09404]
[1745434433337,0.01068513,93588.0,93582.0,0.19659426]
[1745434433539,0.01068524,93587.0,93582.0,0.19659426]
[1745434433787,0.01068513,93588.0,93581.0,0.01068592]
[1745434434651,0.01068501,93589.0,93581.0,0.01068592]
[1745434434846,0.001,93588.0,93582.0,0.01268581]
[1745434435491,0.00010925,93590.0,93582.0,0.01068581]
[1745434435917,0.01079415,93590.0,93583.0,0.0106857]
[1745434436125,0.001,93588.0,93582.0,0.001]
[1745434436289,0.001,93588.0,93582.0,0.22540169]
[1745434436492,0.01068501,93589.0,93582.0,0.22540169]
[1745434436687,0.0106849,93590.0,93583.0,0.0106857]
[1745434436893,0.001,93589.0,93582.0,0.22540169]
[1745434437305,0.01068501,93589.0,93582.0,0.22440169]
[1745434437544,0.01068478,93591.0,93583.0,0.0106857]
[1745434437743,0.001,93589.0,93583.0,0.0106857]
[1745434439270,0.002,93589.0,93583.0,0.001]
[1745434439488,0.002,93589.0,93583.0,0.0116857]
[1745434439885,0.002,93589.0,93584.0,0.34]
[1745434440116,0.002,93589.0,93583.0,0.0116857]
[1745434440336,0.002,93589.0,93583.0,0.001]
[1745434440532,0.002,93589.0,93582.0,0.22440169]
[1745434440791,0.002,93589.0,93583.0,0.0126857]
[1745434440985,0.003,93589.0,93583.0,0.0126857]
[1745434441400,0.003,93589.0,93584.0,0.55371001]
[1745434441613,0.002,93589.0,93584.0,0.55371001]
[1745434441824,0.003,93589.0,93584.0,0.55371001]
[1745434442027,0.001,93589.0,93584.0,0.55371001]
[1745434442924,0.001,93589.0,93588.0,0.34]
[1745434443577,0.01576802,93601.0,93600.0,0.55367521]
[1745434445105,0.02376802,93601.0,93600.0,0.55467521]
[1745434445271,0.01976802,93601.0,93600.0,0.55467521]
[1745434445905,0.01976802,93601.0,93600.0,0.66156535]
[1745434446623,0.01576802,93601.0,93600.0,0.66056535]
[1745434446799,0.02276802,93601.0,93600.0,0.66256535]
[1745434447014,0.01876802,93601.0,93600.0,0.66156535]
[1745434447615,0.02076802,93601.0,93600.0,0.66256535]
[1745434458029,0.02076802,93601.0,93600.0,0.342]
[1745434458254,0.06636802,93601.0,93600.0,0.002]
[1745434458471,0.0681193,93601.0,93600.0,0.002]
[1745434458691,0.06636802,93601.0,93600.0,0.002]
[1745434464163,0.11356802,93601.0,93600.0,0.002]
[1745434477295,0.01068444,93594.0,93590.0,0.24239304]
[1745434477506,0.01068524,93587.0,93580.0,0.48478608]
[1745434478515,0.00968524,93587.0,93580.0,0.48478608]
[1745434478716,0.01068535,93586.0,93580.0,0.48478608]
[1745434478919,0.22438533,93589.0,93581.0,0.21371859]
[1745434479132,0.22438533,93589.0,93581.0,0.01068592]
[1745434479133,0.001,93587.0,93581.0,0.01068592]
[1745434479366,0.002,93587.0,93583.0,0.0106857]
[1745434479548,0.001,93587.0,93582.0,0.01068581]
[1745434479747,0.01068535,93586.0,93581.0,0.34]
[1745434479904,0.002,93586.0,93582.0,0.01068581]
[1745434480101,0.002,93586.0,93583.0,0.0106857]
[1745434480300,0.002,93586.0,93582.0,0.01068581]
[1745434480726,0.001,93586.0,93582.0,0.01068581]
[1745434480931,0.01168535,93586.0,93581.0,0.34]
[1745434481120,0.001,93586.0,93583.0,0.34]
[1745434481320,0.0106849,93590.0,93583.0,0.34]
[1745434481683,0.001,93587.0,93583.0,0.34]
[1745434482019,0.0106849,93590.0,93583.0,0.34]
[1745434482213,0.01068535,93586.0,93581.0,0.34]
[1745434482424,0.01068535,93586.0,93583.0,0.341]
[1745434482425,0.002,93586.0,93583.0,0.341]
[1745434482825,0.001,93586.0,93583.0,0.34]
[1745434483027,0.001,93586.0,93583.0,0.341]
[1745434483228,0.0116849,93590.0,93583.0,0.341]
[1745434483442,0.0116849,93590.0,93583.0,0.342]
[1745434483645,0.001,93587.0,93583.0,0.342]
[1745434483899,0.001,93587.0,93583.0,0.341]
[1745434484097,0.001,93586.0,93583.0,0.55571272]
[1745434484317,0.001,93586.0,93583.0,0.55471272]
[1745434484519,0.001,93586.0,93583.0,0.001]
[1745434484844,0.001,93586.0,93583.0,0.341]
[1745434485260,0.002,93586.0,93583.0,0.343]
[1745434485562,0.002,93586.0,93583.0,0.3546857]
[1745434485996,0.002,93586.0,93583.0,0.002]
[1745434485997,0.01168535,93586.0,93583.0,0.002]
[1745434486199,0.22539298,93586.0,93583.0,0.002]
[1745434486630,0.01168535,93586.0,93583.0,0.002]
[1745434486863,0.001,93586.0,93583.0,0.002]
[1745434487815,0.01168535,93586.0,93583.0,0.002]
[1745434488606,0.001,93586.0,93583.0,0.002]
[1745434489091,0.001,93586.0,93583.0,0.2157129]
[1745434489303,0.001,93586.0,93583.0,0.002]
[1745434490358,0.001,93586.0,93583.0,0.2157137]
[1745434490583,0.001,93586.0,93585.0,0.34]
[1745434490844,0.001,93586.0,93585.0,0.49579014]
[1745434491457,0.00065484,93586.0,93585.0,0.49579014]
[1745434492081,0.01576802,93601.0,93591.0,0.01068478]
[1745434492290,0.01576802,93601.0,93593.0,0.34]
[1745434492462,0.01576802,93601.0,93593.0,0.44689014]
[1745434493423,0.00207455,93594.0,93593.0,0.44789014]
[1745434493827,0.00307455,93594.0,93593.0,0.44789014]
[1745434494256,0.00207455,93594.0,93593.0,0.44789014]
[1745434494630,0.00307455,93594.0,93593.0,0.44789014]
[1745434504994,0.00307455,93594.0,93593.0,0.10789014]
[1745434507031,0.00307455,93594.0,93593.0,0.001]
[1745434507242,0.04987455,93594.0,93593.0,0.001]
[1745434508483,0.00307455,93594.0,93593.0,0.001]
[1745434509335,0.00307455,93594.0,93593.0,0.11088146]
[1745434509713,0.00307455,93594.0,93592.0,0.13967111]
[1745434509919,0.00307455,93594.0,93593.0,0.00273549]
[1745434510344,0.00307455,93594.0,93592.0,0.13967111]
[1745434510862,0.00207455,93594.0,93592.0,0.13967111]
[1745434511312,7.455e-05,93594.0,93593.0,0.10689014]
[1745434511721,0.00207455,93594.0,93593.0,0.10689014]
[1745434511863,0.00307455,93594.0,93593.0,0.10689014]
[1745434512418,7.455e-05,93594.0,93593.0,0.10689014]
[1745434512918,0.00407455,93594.0,93593.0,0.10789014]
[1745434513147,0.00407455,93594.0,93593.0,0.11062521]
[1745434513340,0.00307455,93594.0,93593.0,0.11062521]
[1745434513763,0.00307455,93594.0,93593.0,0.11162521]
[1745434513982,0.00307455,93594.0,93593.0,0.09900321]
[1745434515041,7.455e-05,93594.0,93593.0,0.09800321]
[1745434515247,0.00207455,93594.0,93593.0,0.09626814]
[1745434515984,0.00207455,93594.0,93593.0,0.09526814]
[1745434516201,0.00207455,93594.0,93593.0,0.09626814]
[1745434524031,0.01576802,93601.0,93600.0,0.22821606]
[1745434524032,1e-08,93601.0,93600.0,0.22821606]
[1745434524239,1e-08,93601.0,93600.0,0.4315062]
[1745434524676,1e-08,93601.0,93600.0,0.8519062]
[1745434525274,1e-08,93601.0,93600.0,0.8539062]
[1745434525494,0.0008504,93627.0,93626.0,0.21361587]
[1745434525710,0.0008504,93627.0,93626.0,0.42763888]
[1745434525711,4.652e-05,93627.0,93626.0,0.42763888]
[1745434525934,0.0008502,93644.0,93631.0,0.55360446]
[1745434526202,0.0008502,93644.0,93631.0,1.1755286]
[1745434526411,0.0008502,93644.0,93631.0,0.8480146]
[1745434526839,0.0008502,93644.0,93631.0,0.6604946]
[1745434527868,0.0008502,93644.0,93631.0,0.8826176]
[1745434528080,0.0008502,93644.0,93631.0,0.8247736]
[1745434528280,0.0008502,93644.0,93631.0,0.8116086]
[1745434528485,0.0008502,93644.0,93631.0,0.6604946]
[1745434529115,0.0028502,93632.0,93631.0,0.6604946]
[1745434529891,0.0028502,93632.0,93631.0,0.7541746]
[1745434535800,0.0028502,93632.0,93631.0,0.9841456]
[1745434536004,0.0028502,93632.0,93631.0,0.7541746]
[1745434536606,0.0028502,93632.0,93631.0,0.8900486]
[1745434541204,0.0028502,93632.0,93631.0,0.7541746]
[1745434541437,0.0028502,93632.0,93631.0,0.9510966]
[1745434542065,0.0028502,93632.0,93631.0,0.7541746]
[1745434542286,0.0028502,93632.0,93631.0,0.8567446]
[1745434542491,0.0028502,93632.0,93631.0,1.0034836]
[1745434543009,0.0028502,93632.0,93631.0,0.9470396]
[1745434544042,0.0028502,93632.0,93631.0,0.9363438]
[1745434546976,0.0028502,93632.0,93631.0,0.7434788]
[1745434547211,0.0028502,93632.0,93631.0,0.54057014]
[1745434548040,0.0028502,93632.0,93631.0,3.25467414]
[1745434548244,0.0028502,93632.0,93631.0,2.95629314]
[1745434548457,0.0028502,93632.0,93631.0,1.44598714]
[1745434549256,0.0028502,93632.0,93631.0,1.35738799]
[1745434549661,0.0028502,93632.0,93631.0,1.05144599]
[1745434550089,0.0028502,93632.0,93631.0,1.05244599]
[1745434550292,0.0028502,93632.0,93631.0,1.05344599]
[1745434550947,0.0008502,93632.0,93631.0,1.05344599]
[1745434551150,0.0008502,93632.0,93631.0,1.05544599]
[1745434551577,0.0008502,93632.0,93631.0,1.05344599]
[1745434552573,0.0008502,93632.0,93631.0,1.47284599]
[1745434553437,0.0008502,93632.0,93631.0,1.47384599]
[1745434553643,0.0008502,93632.0,93631.0,1.47284599]
[1745434554019,0.0008502,93632.0,93631.0,1.47384599]
[1745434555055,0.0008502,93632.0,93631.0,1.13384599]
[1745434556024,0.0008502,93632.0,93631.0,1.18384599]
[1745434556452,0.0452,93673.0,93666.0,0.01067623]
[1745434556673,0.0452,93673.0,93667.0,0.20321951]
[1745434557041,0.00213959,93669.0,93668.0,0.55352009]
[1745434557243,0.00213959,93669.0,93668.0,0.66041023]
[1745434558009,0.00413959,93669.0,93668.0,0.66041023]
[1745434558808,0.00713959,93669.0,93668.0,0.66041023]
[1745434559210,0.00413959,93669.0,93668.0,0.66041023]
[1745434559418,0.00413959,93669.0,93668.0,0.75899899]
[1745434559624,0.01013959,93669.0,93668.0,0.93441908]
[1745434559865,0.0482,93681.0,93669.0,0.01454085]
[1745434560079,0.0482,93681.0,93669.0,0.59583099]
[1745434560500,0.0482,93681.0,93669.0,0.58129014]
[1745434560755,0.0482,93681.0,93669.0,0.55738714]
[1745434561398,0.0028498,93670.0,93669.0,0.70547514]
[1745434562031,0.0048498,93670.0,93669.0,0.70547514]
[1745434562684,0.0048498,93670.0,93669.0,0.58127914]
[1745434563085,0.0048498,93670.0,93669.0,0.66040795]
[1745434565823,0.0538498,93670.0,93669.0,0.44689014]
[1745434568560,0.0538498,93670.0,93669.0,0.3328931]
[1745434570454,0.01067611,93667.0,93659.0,0.73746492]
[1745434570658,0.01067611,93667.0,93660.0,0.0936]
[1745434570659,0.01067634,93665.0,93660.0,0.0936]
[1745434570837,0.01067657,93663.0,93660.0,0.0936]
[1745434571075,0.0478,93661.0,93660.0,0.0936]
[1745434571490,0.0965,93661.0,93660.0,0.0936]
[1745434572118,0.31003833,93660.0,93659.0,0.00013959]
[1745434573273,0.30903833,93660.0,93659.0,0.00013959]
[1745434573493,0.31103833,93660.0,93659.0,0.00013959]
[1745434573751,0.0985,93660.0,93659.0,0.00013959]
[1745434574207,0.1025,93660.0,93659.0,0.2136802]
[1745434576228,0.006,93660.0,93659.0,0.66051945]
[1745434577120,0.002,93660.0,93659.0,0.66051945]
[1745434577989,0.005,93660.0,93659.0,0.66051945]
[1745434578202,0.003,93660.0,93659.0,0.66051945]
[1745434578646,0.004,93660.0,93659.0,0.66051945]
[1745434579239,0.001,93660.0,93659.0,0.6750603]
[1745434579474,0.004,93660.0,93659.0,0.6750603]
[1745434579904,0.0018498,93670.0,93669.0,0.55351781]
[1745434580123,0.0018498,93670.0,93669.0,0.75400795]
[1745434580936,0.0048498,93670.0,93669.0,0.75400795]
[1745434581560,0.0048498,93670.0,93669.0,0.64711781]
[1745434581773,0.0058498,93670.0,93669.0,0.64711781]
[1745434582192,0.0554498,93670.0,93669.0,0.4336]
[1745434582402,0.1026498,93670.0,93669.0,0.4336]
[1745434583259,0.1026498,93670.0,93669.0,0.34]
[1745434584515,0.1026498,93670.0,93669.0,0.55351781]
[1745434584928,0.1026498,93670.0,93669.0,0.34]
[1745434590543,0.0058498,93670.0,93669.0,0.34]
[1745434590989,0.0048498,93670.0,93669.0,0.34]
[1745434593128,0.0048498,93670.0,93669.0,0.44689014]
[1745434594157,0.00164475,93670.0,93669.0,0.44689014]
[1745434598712,0.04944475,93670.0,93669.0,0.44689014]
[1745434598936,0.04944475,93670.0,93669.0,0.34]
[1745434600981,0.04944475,93670.0,93668.0,0.2135183]
[1745434601696,0.01067611,93667.0,93660.0,0.36873246]
[1745434601993,0.0478,93670.0,93664.0,0.01067646]
[1745434602178,0.0488,93670.0,93663.0,0.01067657]
[1745434602542,0.0478,93670.0,93666.0,0.01067623]
[1745434602765,0.0488,93670.0,93666.0,0.01067623]
[1745434603820,0.0488,93670.0,93667.0,0.01067611]
[1745434604039,0.0478,93670.0,93668.0,0.21352009]
[1745434604903,0.0488,93670.0,93668.0,0.21352009]
[1745434605331,0.0478,93670.0,93668.0,0.21352009]
[1745434605540,0.0498,93670.0,93668.0,0.21352009]
[1745434614085,0.0498,93670.0,93669.0,0.34]
[1745434615058,0.0488,93670.0,93669.0,0.34]
[1745434615283,0.003,93670.0,93669.0,0.34]
[1745434615641,0.002,93670.0,93669.0,0.34]
[1745434615846,0.003,93670.0,93669.0,0.34]
[1745434619136,0.003,93670.0,93666.0,0.34]
[1745434619357,0.003,93670.0,93667.0,0.01067611]
[1745434620446,0.003,93670.0,93669.0,0.55351781]
[1745434620915,0.002,93670.0,93669.0,0.55351781]
[1745434621143,0.0465,93677.0,93672.0,0.01067554]
[1745434621356,0.05717497,93677.0,93671.0,0.01067566]
[1745434621568,0.0465,93677.0,93674.0,0.01067532]
[1745434622522,0.0465,93677.0,93675.0,0.34]
[1745434622920,0.0495,93677.0,93675.0,0.34]
[1745434623921,0.0515,93677.0,93675.0,0.34]
[1745434624137,0.0485,93677.0,93675.0,0.34]
[1745434624340,0.22419093,93671.0,93669.0,0.34]
[1745434624550,0.30793833,93660.0,93655.0,0.09348]
[1745434624799,0.41482847,93660.0,93641.0,0.11065549]
[1745434625209,0.21357937,93642.0,93641.0,0.11065549]
[1745434625412,0.30977937,93642.0,93641.0,0.11065549]
[1745434625943,0.30877937,93642.0,93641.0,0.11065549]
[1745434626157,0.21359306,93636.0,93635.0,0.09348]
[1745434626369,0.22426974,93638.0,93635.0,0.09348]
[1745434626370,0.21359278,93637.0,93635.0,0.09348]
[1745434626580,0.22426974,93638.0,93635.0,0.09348]
[1745434627275,0.22326974,93638.0,93635.0,0.09348]
[1745434627496,0.21359306,93636.0,93635.0,0.09348]
[1745434627917,0.21359285,93637.0,93635.0,0.09448]
[1745434628126,0.22326974,93638.0,93635.0,0.09448]
[1745434628347,0.22426552,93639.0,93635.0,0.09548]
[1745434628567,0.22426792,93638.0,93635.0,0.09548]
[1745434628743,0.01067942,93638.0,93635.0,0.09348]
[1745434628950,0.01067942,93638.0,93635.0,0.09448]
[1745434629990,0.22426852,93638.0,93635.0,0.09448]
[1745434631453,0.22926852,93638.0,93635.0,0.09548]
[1745434631667,0.23426852,93638.0,93635.0,0.003]
[1745434634122,0.01,93638.0,93635.0,0.003]
[1745434636262,0.01,93638.0,93637.0,0.55359078]
[1745434636677,0.01,93638.0,93637.0,0.34]
[1745434636931,0.01,93638.0,93637.0,0.55359078]
[1745434637138,0.005,93638.0,93637.0,0.55359078]
[1745434637365,0.01,93638.0,93637.0,0.55459078]
[1745434637979,0.005,93638.0,93637.0,0.55459078]
[1745434642820,0.005,93638.0,93637.0,0.341]
[1745434654562,0.0539,93638.0,93637.0,0.341]
[1745434668258,0.2674885,93638.0,93637.0,0.341]
[1745434669026,0.42337864,93638.0,93637.0,0.001]
[1745434678739,0.01068227,93613.0,93611.0,0.34]
[1745434679005,0.2136414,93615.0,93611.0,0.34]
[1745434679423,0.22432679,93614.0,93611.0,0.34]
[1745434680031,0.22432679,93614.0,93611.0,0.34004652]
[1745434680160,0.22432679,93614.0,93611.0,0.34104652]
[1745434681198,0.01068216,93614.0,93611.0,0.34104652]
[1745434681684,0.0106817,93618.0,93611.0,0.34104652]
[1745434681931,0.01068079,93626.0,93619.0,0.34]
[1745434682174,0.01068045,93629.0,93623.0,0.21362198]
[1745434682381,0.01068067,93627.0,93621.0,0.2136268]
[1745434682604,0.01068067,93627.0,93621.0,0.34]
[1745434682833,0.22429598,93627.0,93621.0,0.34]
[1745434683055,0.22429598,93627.0,93621.0,0.35068136]
[1745434683299,0.002,93626.0,93625.0,0.21361815]
[1745434683520,0.002,93626.0,93625.0,0.55361815]
[1745434684406,0.003,93629.0,93628.0,0.55361131]
[1745434684835,0.01067953,93637.0,93631.0,0.01068022]
[1745434685055,0.001,93638.0,93632.0,0.0106801]
[1745434685277,0.001,93638.0,93634.0,0.01067988]
[1745434685505,0.001,93638.0,93637.0,0.34]
[1745434686354,0.011,93638.0,93637.0,0.34]
[1745434686578,0.011,93638.0,93635.0,0.35067976]
[1745434686773,0.016,93638.0,93637.0,0.001]
[1745434687558,0.011,93638.0,93637.0,0.001]
[1745434687738,0.017,93638.0,93637.0,0.342]
[1745434688726,0.017,93638.0,93637.0,0.002]
[1745434692153,0.2305885,93638.0,93637.0,0.002]
[1745434692397,0.33747864,93638.0,93637.0,0.002]
[1745434692631,0.38297864,93638.0,93637.0,0.002]
[1745434697696,0.017,93638.0,93637.0,0.002]
[1745434697963,0.2305885,93638.0,93637.0,0.002]
[1745434698181,0.21359399,93636.0,93628.0,0.59342149]
[1745434698385,0.01067965,93636.0,93630.0,0.01068033]
[1745434699091,0.01067953,93637.0,93631.0,0.01068022]
[1745434699344,0.004,93636.0,93631.0,0.01068022]
[1745434699505,0.004,93636.0,93629.0,0.21360702]
[1745434699705,0.01067953,93637.0,93630.0,0.22428539]
[1745434699911,0.01767942,93638.0,93631.0,0.01068022]
[1745434700269,0.004,93636.0,93630.0,0.001]
[1745434700436,0.004,93636.0,93631.0,0.01068022]
[1745434700673,0.01467965,93636.0,93630.0,0.21360664]
[1745434700877,0.01067976,93635.0,93629.0,0.01068045]
[1745434701085,0.01167942,93638.0,93630.0,0.22428707]
[1745434701282,0.01667942,93638.0,93632.0,0.21360218]
[1745434701809,0.005,93636.0,93630.0,0.22428707]
[1745434702016,0.005,93635.0,93631.0,0.01068022]
[1745434702185,0.005,93635.0,93630.0,0.21360674]
[1745434702402,0.005,93635.0,93632.0,0.22428219]
[1745434702600,0.005,93635.0,93632.0,0.21360209]
[1745434702778,0.005,93635.0,93632.0,0.22428219]
[1745434703207,0.01667942,93638.0,93630.0,0.21360674]
[1745434703208,0.23026967,93638.0,93630.0,0.21360674]
[1745434703422,0.005,93636.0,93632.0,0.001]
[1745434704048,0.005,93636.0,93634.0,0.21359737]
[1745434704200,0.005,93635.0,93634.0,0.21359737]
[1745434704404,0.005,93635.0,93632.0,0.22528072]
[1745434704612,0.005,93636.0,93632.0,0.22428072]
[1745434705022,0.005,93635.0,93632.0,0.22628072]
[1745434705230,0.005,93635.0,93633.0,0.0085749]
[1745434706331,0.01167942,93638.0,93633.0,0.0085749]
[1745434706536,0.001,93638.0,93634.0,0.0085749]
[1745434706770,0.01,93635.0,93634.0,0.0085749]
[1745434707004,0.005,93635.0,93634.0,0.0085749]
[1745434707426,0.011,93635.0,93634.0,0.0085749]
[1745434707863,0.005,93635.0,93634.0,0.3485749]
[1745434708135,0.001,93638.0,93635.0,0.01067976]
[1745434708335,0.001,93638.0,93635.0,0.22427458]
[1745434708542,0.007,93638.0,93637.0,0.21359078]
[1745434708958,0.007,93638.0,93637.0,0.55359078]
[1745434709376,0.001,93638.0,93637.0,0.34]
[1745434709613,0.007,93638.0,93637.0,0.34]
[1745434709816,0.013,93638.0,93637.0,0.3485749]
[1745434710227,0.007,93638.0,93637.0,0.3485749]
[1745434710645,0.014,93638.0,93637.0,0.3495749]
[1745434710855,0.013,93638.0,93637.0,0.3495749]
[1745434711013,0.019,93638.0,93637.0,0.3505749]
[1745434712005,0.019,93638.0,93637.0,0.56416568]
[1745434713535,0.2785885,93638.0,93637.0,0.3505749]
[1745434715233,0.3263885,93638.0,93637.0,0.3505749]
[1745434718076,0.3263885,93638.0,93637.0,0.0105749]
[1745434718788,0.43427864,93638.0,93637.0,0.0105749]
[1745434719849,0.21364782,93612.0,93611.0,0.34004652]
[1745434720289,0.21364782,93612.0,93611.0,4.652e-05]
[1745434720496,0.2173869,93612.0,93611.0,4.652e-05]
[1745434720915,0.21364782,93612.0,93611.0,4.652e-05]
[1745434721080,0.21264782,93612.0,93611.0,4.652e-05]
[1745434721291,0.2163869,93612.0,93611.0,4.652e-05]
[1745434721501,0.2163869,93612.0,93611.0,0.00204652]
[1745434721671,0.2163869,93612.0,93611.0,4.652e-05]
[1745434722086,0.2183869,93612.0,93611.0,4.652e-05]
[1745434722269,0.21464782,93612.0,93611.0,4.652e-05]
[1745434722671,0.21464782,93612.0,93611.0,0.00104652]
[1745434722877,0.21664782,93612.0,93611.0,0.00104652]
[1745434728143,0.41793796,93612.0,93611.0,0.00104652]
[1745434729619,0.41593796,93612.0,93611.0,4.652e-05]
[1745434730339,0.41993796,93612.0,93611.0,4.652e-05]
[1745434731099,0.42593796,93612.0,93611.0,0.00104652]
[1745434732607,0.21367064,93602.0,93601.0,0.18171383]
[1745434733910,0.21767064,93602.0,93601.0,0.00955559]
[1745434734364,0.22067064,93602.0,93601.0,0.01055559]
[1745434734800,0.22034643,93602.0,93601.0,0.01055559]
[1745434735671,0.22034643,93602.0,93601.0,0.002]
[1745434736102,0.22034643,93602.0,93601.0,0.01055435]
[1745434740604,0.007,93602.0,93601.0,0.01055435]
[1745434742459,0.01073943,93602.0,93601.0,0.01055435]
[1745434743109,0.007,93602.0,93601.0,0.01055435]
[1745434751187,0.0107395,93602.0,93601.0,0.01055435]
[1745434751388,0.007,93602.0,93601.0,0.01055435]
[1745434752380,0.007,93602.0,93593.0,0.0004249]
[1745434752381,0.21367977,93598.0,93593.0,0.0004249]
[1745434752572,0.11063028,93597.0,93593.0,0.0004249]
[1745434753204,0.10689014,93597.0,93593.0,0.0004249]
[1745434753746,0.10689014,93597.0,93596.0,0.0014253]
[1745434754623,0.11063013,93597.0,93596.0,0.0014253]
[1745434754824,0.10689014,93597.0,93596.0,0.0014253]
[1745434755256,0.10689014,93597.0,93596.0,0.0004253]
[1745434755425,0.10889014,93597.0,93596.0,0.0004253]
[1745434755616,0.10989014,93597.0,93596.0,0.0004253]
[1745434756230,0.10689014,93597.0,93596.0,0.0004253]
[1745434756463,0.11089014,93597.0,93596.0,0.0004253]
[1745434756671,0.11489014,93597.0,93596.0,0.0004253]
[1745434758073,0.14803848,93597.0,93596.0,0.0004253]
[1745434758939,0.11489014,93597.0,93596.0,0.0004253]
[1745434759170,0.11863027,93597.0,93596.0,0.0004253]
[1745434759582,0.11489014,93597.0,93596.0,0.0004253]
[1745434760126,0.11089014,93597.0,93596.0,0.0004253]
[1745434760321,0.10689014,93597.0,93596.0,0.0004253]
[1745434761848,0.11189014,93597.0,93596.0,0.0004253]
[1745434762055,0.11589014,93597.0,93596.0,0.0004253]
[1745434762869,0.009,93597.0,93596.0,0.0004253]
[1745434772241,0.01273991,93597.0,93596.0,0.0004253]
[1745434773299,0.009,93597.0,93596.0,0.0004253]
[1745434773823,0.01273991,93597.0,93596.0,0.0004253]
[1745434775377,0.21537099,93597.0,93596.0,0.0004253]
[1745434775860,0.16743005,93597.0,93596.0,0.0004253]
[1745434785612,0.2293709,93597.0,93596.0,1e-08]
[1745434785823,0.22563099,93597.0,93596.0,1e-08]
[1745434787041,0.22163099,93597.0,93596.0,1e-08]
[1745434787395,0.22663099,93597.0,93596.0,1e-08]
[1745434787611,0.22663099,93597.0,93575.0,0.0004247]
[1745434787612,0.02522529,93594.0,93591.0,1e-08]
[1745434787819,0.26339347,93592.0,93591.0,4.652e-05]
[1745434788029,0.41958361,93592.0,93591.0,4.652e-05]
[1745434788894,0.42658361,93592.0,93591.0,4.652e-05]
[1745434789831,0.43358361,93592.0,93591.0,4.652e-05]
[1745434793063,0.54047375,93592.0,93591.0,4.652e-05]
[1745434794422,0.43358361,93592.0,93591.0,4.652e-05]
[1745434794866,0.44812446,93592.0,93591.0,4.652e-05]
[1745434799155,0.22823889,93590.0,93589.0,1e-08]
[1745434799428,0.43092903,93590.0,93589.0,1e-08]
[1745434800255,0.43792903,93590.0,93589.0,1e-08]
[1745434800414,0.54481917,93590.0,93589.0,1e-08]
[1745434800608,0.55181917,93590.0,93589.0,1e-08]
[1745434801461,0.53781917,93590.0,93589.0,1e-08]
[1745434801665,0.55181917,93590.0,93589.0,1e-08]
[1745434803656,0.55181917,93590.0,93571.0,0.0024255]
[1745434803657,0.21373915,93572.0,93571.0,0.0024255]
[1745434803863,0.3243707,93572.0,93571.0,0.00289035]
[1745434804204,0.32062929,93572.0,93571.0,0.00289035]
[1745434804856,0.32562929,93572.0,93571.0,0.00289035]
[1745434805076,0.32262929,93572.0,93571.0,0.00289035]
[1745434806056,0.32662929,93572.0,93571.0,0.00289035]
[1745434806416,0.43951943,93572.0,93571.0,0.00289035]
[1745434806621,0.48471943,93572.0,93571.0,0.00289035]
[1745434810029,0.11094085,93569.0,93565.0,1e-08]
[1745434810267,0.2742937,93566.0,93565.0,1e-08]
[1745434810486,0.48745737,93566.0,93565.0,1e-08]
[1745434810886,0.48745737,93566.0,93531.0,0.0997]
[1745434810887,0.01069118,93535.0,93532.0,0.34]
[1745434811123,0.01069038,93542.0,93532.0,0.34]
[1745434811322,0.01069027,93543.0,93536.0,0.01069107]
[1745434811656,0.01069038,93542.0,93535.0,0.01069118]
[1745434812054,0.01069027,93543.0,93535.0,0.01069118]
[1745434812261,0.01069015,93544.0,93539.0,0.34]
[1745434812627,0.01068992,93546.0,93541.0,0.34]
[1745434813050,0.01068912,93553.0,93545.0,0.34]
[1745434813300,0.01068912,93553.0,93547.0,0.21379421]
[1745434813813,0.22446773,93555.0,93549.0,0.21379107]
[1745434814025,0.01068901,93554.0,93549.0,0.21379107]
[1745434814230,0.02068912,93553.0,93549.0,0.21379107]
[1745434814432,0.005,93553.0,93551.0,0.21378699]
[1745434814674,0.005,93553.0,93548.0,0.01068969]
[1745434814675,0.01069038,93542.0,93535.0,0.21389688]
[1745434814873,0.01069038,93542.0,93535.0,7.455e-05]
[1745434815415,0.22450969,93538.0,93535.0,7.455e-05]
[1745434815615,0.21382141,93536.0,93535.0,7.455e-05]